bitfinex/quotes_BTCUSD_20251011
["timestamp","ask_amount","ask_price","bid_price","bid_amount"]
[1760169141667,0.54108291,110680.0,110670.0,0.05751815]
[1760169141874,0.54108291,110680.0,110670.0,0.00051815]
[1760169142081,0.57123481,110680.0,110670.0,0.00051815]
[1760169142511,0.57124682,110680.0,110670.0,0.00051815]
[1760169142953,0.56295689,110680.0,110670.0,0.00051815]
[1760169143156,0.57124673,110680.0,110670.0,0.00051815]
[1760169145479,0.54109483,110680.0,110670.0,0.03318815]
[1760169145725,0.36039371,110680.0,110670.0,0.28750559]
[1760169147495,0.36039479,110680.0,110670.0,0.23823559]
[1760169150782,0.36039479,110680.0,110670.0,0.28750559]
[1760169151195,0.02039479,110680.0,110670.0,0.28750559]
[1760169151384,0.1906109,110700.0,110690.0,0.18068479]
[1760169151385,0.00090742,110700.0,110690.0,0.18068479]
[1760169151610,0.00090742,110700.0,110690.0,0.96599635]
[1760169154726,0.00090742,110700.0,110690.0,0.96799635]
[1760169156834,0.0004,110720.0,110710.0,0.18065215]
[1760169157021,0.05904765,110760.0,110750.0,0.1805869]
[1760169157258,0.05919993,110760.0,110750.0,0.2868569]
[1760169157845,0.39919993,110760.0,110750.0,0.2868569]
[1760169158052,0.3675196,110760.0,110750.0,0.2868569]
[1760169158191,0.00841544,110760.0,110750.0,0.2868569]
[1760169158398,0.00115228,110760.0,110750.0,0.2868569]
[1760169158604,0.00015228,110760.0,110750.0,0.2868569]
[1760169159404,0.00015228,110760.0,110750.0,0.96589846]
[1760169159629,0.00826316,110790.0,110780.0,0.180538]
[1760169159819,0.04013634,110800.0,110790.0,0.1805217]
[1760169159965,0.04013634,110800.0,110790.0,0.05615]
[1760169159966,0.18932068,110800.0,110790.0,0.05615]
[1760169160177,0.00881527,110800.0,110790.0,0.2860117]
[1760169160362,0.00055211,110800.0,110790.0,0.2860117]
[1760169160787,0.18105752,110800.0,110780.0,0.02356]
[1760169161001,0.00055211,110800.0,110790.0,0.05615]
[1760169161206,0.00055211,110800.0,110790.0,0.2860117]
[1760169162517,0.00055211,110800.0,110790.0,0.96505326]
[1760169163162,0.00055211,110800.0,110790.0,0.10549]
[1760169163373,0.00055211,110800.0,110790.0,0.2366717]
[1760169163587,0.00055211,110800.0,110790.0,0.2860117]
[1760169164211,0.00055211,110800.0,110790.0,0.10549]
[1760169164411,0.00055211,110800.0,110790.0,0.2860117]
[1760169164812,0.00055211,110800.0,110790.0,0.96505326]
[1760169166587,0.00055211,110800.0,110790.0,0.2860117]
[1760169167624,0.11201438,110830.0,110800.0,0.18049801]
[1760169167827,0.18047304,110820.0,110810.0,0.07194]
[1760169168040,0.18047304,110820.0,110810.0,0.10579]
[1760169168452,0.17945145,110820.0,110810.0,0.10579]
[1760169168651,0.17945145,110820.0,110810.0,0.28627912]
[1760169169039,0.17945145,110820.0,110810.0,0.10579]
[1760169169227,0.18047283,110820.0,110810.0,0.28627912]
[1760169169448,0.18047283,110820.0,110810.0,0.10579]
[1760169169650,0.4525213,110830.0,110810.0,0.28627912]
[1760169170069,0.18047283,110820.0,110810.0,0.23852912]
[1760169170286,0.17958805,110820.0,110810.0,0.23852912]
[1760169170951,0.17958805,110820.0,110810.0,0.05804]
[1760169171163,0.17958805,110820.0,110810.0,0.23852912]
[1760169171780,0.18048912,110810.0,110790.0,0.02356]
[1760169171979,0.18048912,110810.0,110790.0,0.25182921]
[1760169172193,0.1805217,110790.0,110780.0,0.02419]
[1760169172398,0.1805217,110790.0,110780.0,0.05804]
[1760169172768,0.52049092,110810.0,110790.0,0.18052168]
[1760169173117,0.52049092,110810.0,110800.0,0.02419]
[1760169173310,0.18050541,110800.0,110790.0,0.2047117]
[1760169173470,0.52049092,110810.0,110790.0,0.2385617]
[1760169173674,0.18050541,110800.0,110790.0,0.2863117]
[1760169173893,0.18050541,110800.0,110790.0,0.05804]
[1760169174079,0.18050541,110800.0,110790.0,0.02419]
[1760169174261,0.1805217,110790.0,110780.0,0.204728]
[1760169174461,0.1805217,110790.0,110780.0,0.00015211]
[1760169175038,0.5506736,110790.0,110780.0,0.00015211]
[1760169175569,0.5506736,110790.0,110780.0,0.00115211]
[1760169175756,0.5506736,110790.0,110780.0,0.00215211]
[1760169176850,0.5506736,110790.0,110780.0,0.00115211]
[1760169177473,0.55539568,110790.0,110780.0,0.00015211]
[1760169178477,0.2107388,110750.0,110740.0,0.05108777]
[1760169178670,0.5507388,110750.0,110740.0,0.02705005]
[1760169179079,0.5507388,110750.0,110740.0,0.00015228]
[1760169179482,0.5205869,110750.0,110740.0,0.02434228]
[1760169179695,0.21976006,110770.0,110740.0,0.28654549]
[1760169179907,0.21976006,110770.0,110750.0,0.25252676]
[1760169180114,0.18960816,110770.0,110760.0,0.02419]
[1760169180318,0.18954778,110790.0,110770.0,0.1805543]
[1760169180462,0.1805543,110770.0,110760.0,0.2525106]
[1760169180673,0.18954778,110790.0,110770.0,0.1805543]
[1760169180878,0.180538,110780.0,110760.0,0.02419]
[1760169181048,0.18958201,110770.0,110740.0,0.02434228]
[1760169181254,0.1805706,110760.0,110740.0,0.20494401]
[1760169181461,0.1805706,110760.0,110740.0,0.02434228]
[1760169181462,0.2107388,110750.0,110740.0,0.02434228]
[1760169181666,0.1805869,110750.0,110740.0,0.05819228]
[1760169182165,0.1805869,110750.0,110740.0,0.28654549]
[1760169183218,0.5205706,110760.0,110740.0,0.28654549]
[1760169183441,0.1805869,110750.0,110740.0,0.05819228]
[1760169183638,0.1805869,110750.0,110740.0,0.02434228]
[1760169183789,0.2107388,110750.0,110740.0,0.00015228]
[1760169184174,0.2107388,110750.0,110740.0,0.00215228]
[1760169184766,0.5507388,110750.0,110740.0,0.00215228]
[1760169185383,0.5507388,110750.0,110680.0,0.09593566]
[1760169185384,0.18068479,110690.0,110680.0,0.09593566]
[1760169185586,0.18068479,110690.0,110680.0,0.09644308]
[1760169186048,0.18068202,110700.0,110680.0,0.35913264]
[1760169186248,0.18068479,110690.0,110680.0,0.02469742]
[1760169186648,0.18068202,110700.0,110680.0,0.02469742]
[1760169186649,0.18068202,110700.0,110680.0,0.23924854]
[1760169186865,0.18068202,110700.0,110680.0,0.28699854]
[1760169187085,0.18068202,110700.0,110680.0,0.23924854]
[1760169187321,0.18068479,110690.0,110680.0,0.05854742]
[1760169187522,0.18068479,110690.0,110680.0,0.24024854]
[1760169187667,0.18068479,110690.0,110680.0,0.24124854]
[1760169187875,0.18068202,110700.0,110680.0,0.24124854]
[1760169188082,0.52066847,110700.0,110690.0,0.20487479]
[1760169188262,0.52066847,110700.0,110690.0,0.02419]
[1760169188785,0.18068479,110690.0,110680.0,0.25499456]
[1760169189038,0.18068479,110690.0,110680.0,0.33559456]
[1760169189229,0.18068479,110690.0,110680.0,0.07329344]
[1760169189428,0.18068479,110690.0,110680.0,0.07429344]
[1760169189607,0.18068479,110690.0,110680.0,0.05010344]
[1760169190026,0.18068479,110690.0,110680.0,0.25499456]
[1760169190233,0.18068479,110690.0,110680.0,0.07429344]
[1760169190578,0.21083669,110690.0,110680.0,0.05010344]
[1760169190786,0.21083669,110690.0,110680.0,0.04910344]
[1760169190984,0.21083669,110690.0,110680.0,0.05010344]
[1760169191182,0.18068479,110690.0,110680.0,0.08495344]
[1760169191423,0.52066847,110700.0,110680.0,0.33759456]
[1760169191635,0.18068479,110690.0,110680.0,0.05010344]
[1760169191840,0.52066847,110700.0,110680.0,0.25499456]
[1760169192193,0.18068479,110690.0,110680.0,0.25599456]
[1760169192393,0.18068479,110690.0,110680.0,0.25499456]
[1760169192608,0.34,110700.0,110690.0,0.18068479]
[1760169192938,0.52066847,110700.0,110690.0,0.23872479]
[1760169193135,0.18068479,110690.0,110680.0,0.04910344]
[1760169193524,0.21083669,110690.0,110680.0,0.04910344]
[1760169193786,0.21083669,110690.0,110680.0,0.00050742]
[1760169194121,0.55083669,110690.0,110680.0,0.00050742]
[1760169196188,0.57583668,110690.0,110680.0,0.00050742]
[1760169196402,0.55083669,110690.0,110680.0,0.00050742]
[1760169197005,0.57218744,110690.0,110680.0,0.00050742]
[1760169197230,0.55083669,110690.0,110680.0,0.00050742]
[1760169197832,0.57218744,110690.0,110680.0,0.00050742]
[1760169198574,0.55083669,110690.0,110680.0,0.00050742]
[1760169198983,0.55090201,110650.0,110640.0,0.04859602]
[1760169199184,0.55090201,110650.0,110640.0,0.00015226]
[1760169199979,0.57225276,110650.0,110640.0,0.00015226]
[1760169200676,0.55090201,110650.0,110640.0,0.00015226]
[1760169201088,0.52075011,110650.0,110640.0,0.22951472]
[1760169201296,0.52075011,110650.0,110640.0,0.07254828]
[1760169201500,0.55090201,110650.0,110640.0,0.07254828]
[1760169201930,0.18074739,110660.0,110640.0,0.15599661]
[1760169201931,0.18073377,110660.0,110640.0,0.15599661]
[1760169202148,0.18073377,110660.0,110650.0,0.0722042]
[1760169202578,0.21088567,110660.0,110650.0,0.0484042]
[1760169202739,0.55088567,110660.0,110640.0,0.26946913]
[1760169202944,0.18075011,110650.0,110640.0,0.26946913]
[1760169203329,0.55088567,110660.0,110650.0,0.0238]
[1760169203529,0.55088567,110660.0,110640.0,0.26946913]
[1760169203732,0.55088567,110660.0,110650.0,0.0238]
[1760169203997,0.18075011,110650.0,110640.0,0.26946913]
[1760169204185,0.18075011,110650.0,110640.0,0.30350913]
[1760169204330,0.18075011,110650.0,110640.0,0.08870408]
[1760169204728,0.55088567,110660.0,110640.0,0.30351052]
[1760169204931,0.3701519,110660.0,110650.0,0.20455011]
[1760169205134,0.55088567,110660.0,110650.0,0.17219182]
[1760169205334,0.21088567,110660.0,110650.0,0.17219182]
[1760169205534,0.55088567,110660.0,110650.0,0.17219182]
[1760169205732,0.18068479,110690.0,110660.0,0.18073377]
[1760169205955,0.18070112,110680.0,110670.0,0.0238]
[1760169206199,0.18970189,110700.0,110680.0,0.18070112]
[1760169206200,0.00903342,110700.0,110680.0,0.18070112]
[1760169206356,0.18970264,110700.0,110680.0,0.20450112]
[1760169206557,0.17702441,110700.0,110690.0,0.0238]
[1760169206965,0.18168479,110690.0,110680.0,0.0238]
[1760169207194,0.001,110690.0,110680.0,0.23854112]
[1760169207421,0.00050648,110690.0,110680.0,0.28814112]
[1760169207556,0.18974613,110710.0,110680.0,0.28814112]
[1760169207557,0.18968768,110710.0,110690.0,0.18067211]
[1760169207759,0.00015185,110710.0,110700.0,0.28810847]
[1760169208157,0.0126728,110710.0,110700.0,0.80215231]
[1760169208850,0.00903097,110730.0,110720.0,0.18063583]
[1760169209047,0.01654184,110740.0,110730.0,0.18061952]
[1760169209332,0.18060988,110740.0,110730.0,0.0238]
[1760169209534,0.18061952,110730.0,110720.0,0.0238]
[1760169209960,0.18061952,110730.0,110710.0,0.20445033]
[1760169210139,0.52963394,110740.0,110720.0,0.28807583]
[1760169210360,0.18970803,110750.0,110730.0,0.20441952]
[1760169210565,0.21075511,110740.0,110730.0,0.0238]
[1760169210771,0.18986014,110750.0,110730.0,0.28805952]
[1760169210970,0.0166946,110750.0,110740.0,0.20440321]
[1760169211178,0.18073901,110750.0,110740.0,0.23844321]
[1760169211304,0.1972815,110750.0,110740.0,0.23844321]
[1760169211508,0.0468465,110750.0,110740.0,0.23844321]
[1760169211707,0.2274334,110750.0,110740.0,0.05784]
[1760169212007,0.21089091,110750.0,110740.0,0.05784]
[1760169212205,0.00015211,110750.0,110740.0,0.28804321]
[1760169213863,0.18073901,110750.0,110740.0,0.28804321]
[1760169214063,0.00015211,110750.0,110740.0,0.80208705]
[1760169214268,0.00015211,110750.0,110740.0,0.79032537]
[1760169214699,0.19785597,110770.0,110750.0,0.18057401]
[1760169214905,0.19785597,110770.0,110760.0,0.05784]
[1760169215029,0.21439912,110770.0,110750.0,0.0238]
[1760169215409,0.19785597,110770.0,110750.0,0.2043869]
[1760169215626,0.1805706,110760.0,110750.0,0.2539869]
[1760169215839,0.18958335,110770.0,110750.0,0.2880269]
[1760169216050,0.19785201,110770.0,110760.0,0.0238]
[1760169216325,0.52057866,110790.0,110760.0,0.2539706]
[1760169216525,0.34,110780.0,110770.0,0.2043543]
[1760169216739,0.00826468,110780.0,110770.0,0.2383943]
[1760169216962,0.55454902,110790.0,110770.0,0.2879943]
[1760169217188,0.00841676,110790.0,110780.0,0.204338]
[1760169217436,0.00015208,110790.0,110780.0,0.287978]
[1760169218266,0.18067378,110790.0,110780.0,0.238378]
[1760169218479,0.180538,110780.0,110770.0,0.0238]
[1760169218723,0.18067378,110790.0,110770.0,0.2879943]
[1760169218942,0.18892737,110790.0,110780.0,0.0238]
[1760169219215,0.18892737,110790.0,110770.0,0.2043543]
[1760169219671,0.180538,110780.0,110770.0,0.0248]
[1760169219910,0.180538,110780.0,110770.0,0.2358943]
[1760169220112,0.18067378,110790.0,110770.0,0.2831143]
[1760169220342,0.18892217,110790.0,110780.0,0.02297]
[1760169220553,0.18892217,110790.0,110780.0,0.05451]
[1760169221104,0.18892217,110790.0,110780.0,0.02297]
[1760169221482,0.18892217,110790.0,110780.0,0.05451]
[1760169221685,0.18067378,110790.0,110780.0,0.05451]
[1760169221894,0.18067378,110790.0,110780.0,0.02297]
[1760169222304,0.17845353,110790.0,110780.0,0.02297]
[1760169223197,0.1805543,110770.0,110760.0,0.0238]
[1760169223406,0.1805543,110770.0,110750.0,0.0238]
[1760169223407,0.1805706,110760.0,110750.0,0.0238]
[1760169224576,0.18060321,110740.0,110730.0,0.02297]
[1760169224803,0.18959913,110760.0,110750.0,0.001]
[1760169225005,0.55975103,110760.0,110750.0,0.05726]
[1760169225456,0.55975103,110760.0,110750.0,0.02445]
[1760169225660,0.1805869,110750.0,110740.0,0.02345]
[1760169225869,0.1805869,110750.0,110740.0,0.20420529]
[1760169226041,0.1805869,110750.0,110740.0,0.05641208]
[1760169226405,0.1805869,110750.0,110740.0,0.00015208]
[1760169227041,0.2107388,110750.0,110740.0,0.00015208]
[1760169227244,0.16858469,110750.0,110740.0,0.00015208]
[1760169228192,0.50858469,110750.0,110740.0,0.00015208]
[1760169228398,0.50858469,110750.0,110740.0,0.00115208]
[1760169228604,0.50858469,110750.0,110740.0,0.00015208]
[1760169229444,0.50858469,110750.0,110740.0,0.02360208]
[1760169229649,0.50858469,110750.0,110740.0,0.00015208]
[1760169230495,0.4991002,110750.0,110740.0,0.00015208]
[1760169230698,0.4991002,110750.0,110740.0,0.02360208]
[1760169231138,0.4991002,110750.0,110740.0,0.05641208]
[1760169231353,0.4991002,110750.0,110740.0,0.02360208]
[1760169231566,0.4991002,110750.0,110740.0,0.00015208]
[1760169233558,0.2107388,110750.0,110740.0,0.23701529]
[1760169233785,0.2107388,110750.0,110740.0,0.10395208]
[1760169234202,0.2107388,110750.0,110740.0,0.05641208]
[1760169234406,0.2107388,110750.0,110740.0,0.02360208]
[1760169234850,0.2107388,110750.0,110740.0,0.00015208]
[1760169235267,0.2107388,110750.0,110740.0,0.05641208]
[1760169237018,0.2107388,110750.0,110740.0,0.23701529]
[1760169237232,0.2107388,110750.0,110740.0,0.05641208]
[1760169238084,0.2107388,110750.0,110740.0,0.02360208]
[1760169238508,0.2107388,110750.0,110740.0,0.00015208]
[1760169241184,0.1805869,110750.0,110740.0,0.00015208]
[1760169241820,0.1805869,110750.0,110740.0,0.05641208]
[1760169242302,0.1805869,110750.0,110740.0,0.00015208]
[1760169242554,0.18889449,110750.0,110740.0,0.00015208]
[1760169243083,0.23566499,110750.0,110740.0,0.00015208]
[1760169243289,0.21904639,110750.0,110740.0,0.00015208]
[1760169243487,0.23566012,110750.0,110740.0,0.00015208]
[1760169243703,0.21904639,110750.0,110740.0,0.00015208]
[1760169244144,0.21904639,110750.0,110740.0,0.05641208]
[1760169244340,0.21904639,110750.0,110740.0,0.00015208]
[1760169245286,0.18889449,110750.0,110740.0,0.00015208]
[1760169245486,0.18888907,110750.0,110740.0,0.00015208]
[1760169248328,0.52888907,110750.0,110740.0,0.00015208]
[1760169248529,0.18060321,110740.0,110730.0,0.20406934]
[1760169248725,9.144e-05,110740.0,110730.0,0.25160934]
[1760169248995,0.18069465,110740.0,110730.0,0.28441934]
[1760169249516,0.18061952,110730.0,110720.0,0.02345]
[1760169249717,0.18061952,110730.0,110720.0,0.23689583]
[1760169249922,0.18063583,110720.0,110710.0,0.02345]
[1760169250129,0.18063583,110720.0,110710.0,0.05626]
[1760169250358,0.18063583,110720.0,110710.0,0.28445215]
[1760169250554,0.18063583,110720.0,110710.0,0.05626]
[1760169251168,0.18063583,110720.0,110710.0,0.02345]
[1760169251370,0.18065215,110710.0,110700.0,0.02345]
[1760169251581,0.18065215,110710.0,110700.0,0.05626]
[1760169251823,0.18063583,110720.0,110710.0,0.001]
[1760169252033,0.18965049,110730.0,110710.0,0.28445215]
[1760169252235,0.52965049,110730.0,110720.0,0.02345]
[1760169252386,0.21987671,110740.0,110720.0,0.28443583]
[1760169252591,0.22821308,110740.0,110720.0,0.23689583]
[1760169252841,0.56821229,110740.0,110730.0,0.02345]
[1760169253050,0.55987671,110740.0,110730.0,0.02345]
[1760169253202,0.56821217,110740.0,110730.0,0.05626]
[1760169253578,0.53806027,110740.0,110730.0,0.1038]
[1760169253981,0.52893867,110740.0,110730.0,0.05626]
[1760169254227,0.52721674,110740.0,110730.0,0.02345]
[1760169254432,0.52721674,110740.0,110730.0,0.28441952]
[1760169254849,0.52721674,110740.0,110730.0,0.1038]
[1760169255052,0.5362469,110740.0,110730.0,0.1038]
[1760169255258,0.5362469,110740.0,110730.0,0.05626]
[1760169255535,0.5362469,110740.0,110730.0,0.10484]
[1760169255745,0.5362469,110740.0,110730.0,0.28545952]
[1760169256103,0.5362469,110740.0,110730.0,0.10484]
[1760169256298,0.53597417,110740.0,110730.0,0.28545952]
[1760169256499,0.52763871,110740.0,110730.0,0.28545952]
[1760169257406,0.52763871,110740.0,110730.0,0.05626]
[1760169257609,0.18963337,110740.0,110730.0,0.28545952]
[1760169258039,0.18963337,110740.0,110730.0,0.10484]
[1760169258560,0.34903016,110740.0,110730.0,0.28545952]
[1760169258771,0.34,110740.0,110730.0,0.28545952]
[1760169258976,0.52060321,110740.0,110730.0,0.28545952]
[1760169260585,0.18061952,110730.0,110720.0,0.20408583]
[1760169260788,0.18061952,110730.0,110720.0,0.02345]
[1760169260985,0.18061952,110730.0,110720.0,0.18063583]
[1760169261250,0.18061952,110730.0,110710.0,0.26171475]
[1760169261451,0.18063583,110720.0,110710.0,0.21313475]
[1760169261654,0.18063583,110720.0,110700.0,0.20411847]
[1760169261870,0.18063583,110720.0,110710.0,0.0572]
[1760169262439,0.18063583,110720.0,110710.0,0.05745955]
[1760169263006,0.3701519,110730.0,110710.0,0.28715925]
[1760169263181,0.3701519,110730.0,110720.0,0.20510583]
[1760169263182,0.34,110730.0,110720.0,0.20510583]
[1760169263340,0.34,110730.0,110720.0,0.28641583]
[1760169263540,0.52061952,110730.0,110720.0,0.28641583]
[1760169263744,0.34,110730.0,110720.0,0.28641583]
[1760169263940,0.18061952,110730.0,110720.0,0.28641583]
[1760169264143,0.18963337,110740.0,110720.0,0.28641583]
[1760169264343,0.52963337,110740.0,110730.0,0.02447]
[1760169264541,0.34,110740.0,110730.0,0.28639952]
[1760169264770,0.52895616,110740.0,110730.0,0.0572]
[1760169264970,0.18061952,110730.0,110710.0,0.26273475]
[1760169265176,0.18063583,110720.0,110710.0,0.26273475]
[1760169265371,0.18063583,110720.0,110710.0,0.29546475]
[1760169265877,0.18063583,110720.0,110710.0,0.2957243]
[1760169266072,0.18063583,110720.0,110710.0,0.11507215]
[1760169266232,0.18063583,110720.0,110710.0,0.2471443]
[1760169266432,0.18063583,110720.0,110710.0,0.24708979]
[1760169266727,0.18063583,110720.0,110710.0,0.05740504]
[1760169268085,0.18063583,110720.0,110710.0,0.05840504]
[1760169269216,0.18063583,110720.0,110710.0,0.23905719]
[1760169270054,0.18063583,110720.0,110710.0,0.05840504]
[1760169270877,0.18063583,110720.0,110710.0,0.02567504]
[1760169272138,0.52063583,110720.0,110710.0,0.02567504]
[1760169272359,0.52063583,110720.0,110710.0,0.00125955]
[1760169272558,0.55078773,110720.0,110710.0,0.00125955]
[1760169273469,0.55078773,110720.0,110710.0,0.03298955]
[1760169273644,0.55078773,110720.0,110710.0,0.05745955]
[1760169273848,0.55078773,110720.0,110710.0,0.00025955]
[1760169280273,0.58356517,110720.0,110710.0,0.00025955]
[1760169280481,0.60861491,110720.0,110710.0,0.00025955]
[1760169280696,0.73276451,110720.0,110710.0,1e-08]
[1760169280916,0.0301519,110680.0,110670.0,0.07174566]
[1760169281128,0.21085302,110680.0,110670.0,0.07174566]
[1760169281572,0.18070112,110680.0,110670.0,0.07174566]
[1760169281850,0.18070112,110680.0,110650.0,0.02378]
[1760169281851,0.18073377,110660.0,110650.0,0.02378]
[1760169282003,0.18073377,110660.0,110650.0,0.05520648]
[1760169282224,0.18073377,110660.0,110650.0,0.02428648]
[1760169282446,0.18073377,110660.0,110650.0,0.00050648]
[1760169282866,0.18073377,110660.0,110650.0,0.05520648]
[1760169283504,0.52071902,110670.0,110650.0,0.28398191]
[1760169283751,0.52071902,110670.0,110660.0,0.02378]
[1760169283966,0.52071902,110670.0,110660.0,0.0547]
[1760169284186,0.18073377,110660.0,110650.0,0.02528648]
[1760169284416,0.18073377,110660.0,110650.0,0.05520648]
[1760169284631,0.34,110670.0,110650.0,0.28497659]
[1760169284840,0.18068479,110690.0,110680.0,0.18070112]
[1760169285049,0.18068479,110690.0,110680.0,0.05417]
[1760169285503,0.18068479,110690.0,110680.0,0.10319]
[1760169285723,0.18971405,110720.0,110690.0,0.18068479]
[1760169285937,0.18971405,110720.0,110700.0,0.05417]
[1760169286337,0.18971405,110720.0,110700.0,0.28385847]
[1760169286713,0.1897576,110730.0,110710.0,0.18065215]
[1760169287018,0.18063583,110720.0,110710.0,0.25300426]
[1760169287223,0.18063583,110720.0,110710.0,0.28299426]
[1760169287426,0.18972928,110740.0,110710.0,0.28299426]
[1760169287427,0.18060491,110740.0,110730.0,0.18061952]
[1760169287624,0.18060491,110740.0,110730.0,0.23378952]
[1760169287836,0.18966381,110750.0,110730.0,0.28280952]
[1760169288029,0.431761,110760.0,110750.0,0.1805869]
[1760169288270,0.431761,110760.0,110750.0,0.2837769]
[1760169290402,0.6123316,110760.0,110750.0,0.05417]
[1760169291239,0.6123316,110760.0,110730.0,0.02898097]
[1760169291240,0.1805869,110750.0,110730.0,0.02898097]
[1760169291415,0.2049169,110750.0,110740.0,0.01995]
[1760169291637,0.05662,110750.0,110740.0,0.20055321]
[1760169291855,0.2372069,110750.0,110740.0,0.20055321]
[1760169292057,0.2372069,110750.0,110740.0,0.01995]
[1760169292298,0.2824269,110750.0,110730.0,0.20972642]
[1760169292711,0.2372069,110750.0,110740.0,0.001]
[1760169292920,0.771761,110760.0,110750.0,0.1805869]
[1760169293123,0.828381,110760.0,110750.0,0.1805869]
[1760169293324,1.0089516,110760.0,110740.0,0.20155321]
[1760169293559,1.0089516,110760.0,110750.0,0.1805869]
[1760169293980,1.0089516,110760.0,110740.0,0.20055321]
[1760169294434,1.0089516,110760.0,110750.0,0.001]
[1760169294672,1.0391035,110760.0,110750.0,0.001]
[1760169294884,0.79718398,110760.0,110750.0,0.001]
[1760169295098,0.85070562,110760.0,110750.0,0.001]
[1760169295312,0.85070543,110760.0,110750.0,0.001]
[1760169295759,0.85070543,110760.0,110730.0,0.00015211]
[1760169295760,0.55075511,110740.0,110730.0,0.00015211]
[1760169296003,0.57508511,110740.0,110730.0,0.00015211]
[1760169296203,0.65259511,110740.0,110730.0,0.00015211]
[1760169297216,0.67978962,110740.0,110730.0,0.00015211]
[1760169297476,0.65259511,110740.0,110730.0,0.00015211]
[1760169300423,0.62244321,110740.0,110730.0,0.00015211]
[1760169301120,0.10184,110740.0,110730.0,0.00015211]
[1760169301309,0.23722321,110740.0,110730.0,0.02010211]
[1760169301463,0.28244321,110740.0,110730.0,0.00015211]
[1760169302276,0.31259511,110740.0,110730.0,0.00015211]
[1760169303164,0.65259511,110740.0,110730.0,0.00015211]
[1760169303341,0.6525407,110740.0,110730.0,0.00015211]
[1760169303884,0.6223888,110740.0,110730.0,0.00015211]
[1760169304991,0.6525407,110740.0,110730.0,0.00015211]
[1760169307319,0.6223888,110740.0,110730.0,0.00015211]
[1760169308453,0.6223888,110740.0,110730.0,0.05009211]
[1760169308454,0.5771688,110740.0,110730.0,0.05009211]
[1760169308699,0.6223888,110740.0,110730.0,0.00015211]
[1760169309580,0.5448788,110740.0,110730.0,0.21076163]
[1760169309788,0.5771688,110740.0,110730.0,0.00015211]
[1760169310216,0.6223888,110740.0,110730.0,0.00015211]
[1760169310432,0.5771688,110740.0,110730.0,0.00015211]
[1760169310656,0.02433,110750.0,110740.0,0.18060321]
[1760169310896,0.39474208,110760.0,110750.0,0.1805869]
[1760169311118,0.21417148,110760.0,110750.0,0.2305869]
[1760169311334,0.55417148,110760.0,110750.0,0.2305869]
[1760169311766,0.42703208,110760.0,110750.0,0.2005969]
[1760169311985,0.73474208,110760.0,110750.0,0.2305869]
[1760169312210,0.76703208,110760.0,110750.0,0.2005969]
[1760169313087,0.76703208,110760.0,110740.0,0.20055321]
[1760169313355,0.2049169,110750.0,110740.0,0.18060321]
[1760169313498,0.2049169,110750.0,110740.0,0.20055321]
[1760169313963,0.2049169,110750.0,110740.0,0.23054321]
[1760169314748,0.52984148,110760.0,110750.0,0.1805869]
[1760169314957,0.52984148,110760.0,110750.0,0.2863569]
[1760169315167,0.18984148,110760.0,110750.0,0.2863569]
[1760169317993,0.18984148,110760.0,110750.0,0.2873569]
[1760169321601,0.18984148,110760.0,110750.0,0.80195873]
[1760169322561,0.00056958,110760.0,110750.0,0.80195873]
[1760169323007,0.00056958,110760.0,110750.0,0.2873569]
[1760169323419,0.06106958,110760.0,110750.0,0.2015969]
[1760169323625,0.00056958,110760.0,110750.0,0.2353969]
[1760169324054,0.06106958,110760.0,110750.0,0.1815869]
[1760169324260,0.06106958,110760.0,110750.0,0.001]
[1760169324261,0.29286018,110760.0,110750.0,0.001]
[1760169325088,0.29286018,110760.0,110750.0,0.1815869]
[1760169325815,0.29286018,110760.0,110750.0,0.001]
[1760169326253,0.06106958,110760.0,110750.0,0.1815869]
[1760169326481,0.24164018,110760.0,110750.0,0.1815869]
[1760169326893,0.08100917,110760.0,110750.0,0.2412569]
[1760169327095,0.54647553,110770.0,110760.0,0.1805706]
[1760169327300,0.57961553,110770.0,110750.0,0.2587069]
[1760169327504,0.5796143,110770.0,110760.0,0.2154606]
[1760169327948,0.5796143,110770.0,110760.0,0.03489]
[1760169328360,0.5796143,110770.0,110750.0,0.2577069]
[1760169328537,0.5796143,110770.0,110760.0,0.1805706]
[1760169328812,0.5205706,110760.0,110730.0,0.19459005]
[1760169329025,0.52925321,110740.0,110730.0,0.00765211]
[1760169329223,0.56239321,110740.0,110730.0,0.00765211]
[1760169329432,0.64396511,110740.0,110730.0,0.00765211]
[1760169330886,0.64396511,110740.0,110730.0,0.00865211]
[1760169331589,0.66838154,110740.0,110730.0,0.00865211]
[1760169331733,0.64396511,110740.0,110730.0,0.00765211]
[1760169331933,0.66059566,110740.0,110730.0,0.00765211]
[1760169332418,0.64396511,110740.0,110730.0,0.00765211]
[1760169337565,0.61381321,110740.0,110730.0,0.00765211]
[1760169338207,0.56239321,110740.0,110730.0,0.22316163]
[1760169338318,0.04179,110740.0,110730.0,0.24794163]
[1760169338525,0.18925321,110740.0,110730.0,0.24794163]
[1760169338730,0.18925321,110740.0,110730.0,0.06732211]
[1760169338930,0.52925321,110740.0,110730.0,0.06732211]
[1760169339153,0.52925321,110740.0,110730.0,0.24794163]
[1760169339584,0.34,110740.0,110730.0,0.30028163]
[1760169339920,0.02438,110750.0,110730.0,0.30028163]
[1760169339921,0.21397913,110760.0,110740.0,0.18060321]
[1760169340122,0.03494771,110770.0,110750.0,0.1805869]
[1760169340323,0.2064743,110770.0,110760.0,0.1805706]
[1760169340526,0.2396143,110770.0,110760.0,0.1805706]
[1760169340729,0.2396143,110770.0,110750.0,0.2577069]
[1760169341077,0.34,110760.0,110750.0,0.2577069]
[1760169341290,0.2368406,110760.0,110750.0,0.2053669]
[1760169341508,0.2046906,110760.0,110750.0,0.2371569]
[1760169341709,0.1805869,110750.0,110740.0,0.18060321]
[1760169341888,0.1805869,110750.0,110740.0,0.23817321]
[1760169342489,0.2046906,110760.0,110740.0,0.28784321]
[1760169342714,0.2046906,110760.0,110750.0,0.02578]
[1760169342715,0.5446906,110760.0,110750.0,0.02578]
[1760169342948,0.1805869,110750.0,110740.0,0.02578]
[1760169343143,0.2049069,110750.0,110740.0,0.20638321]
[1760169343360,0.2370569,110750.0,110740.0,0.18060321]
[1760169343561,0.02432,110750.0,110740.0,0.23817321]
[1760169344337,0.60237913,110760.0,110740.0,0.23817321]
[1760169344523,0.55371913,110760.0,110740.0,0.28884321]
[1760169344719,0.55371913,110760.0,110750.0,0.2066269]
[1760169344985,0.58741913,110760.0,110750.0,0.05955]
[1760169345181,0.34,110760.0,110750.0,0.2401369]
[1760169345383,0.5783906,110760.0,110750.0,0.2066269]
[1760169345652,0.6262906,110760.0,110740.0,0.20638321]
[1760169346334,0.02432,110750.0,110740.0,0.20638321]
[1760169346543,0.18060321,110740.0,110730.0,0.00765211]
[1760169346776,0.2049069,110750.0,110730.0,0.24782163]
[1760169346985,0.2049069,110750.0,110740.0,0.20664321]
[1760169347183,0.1805869,110750.0,110740.0,0.02604]
[1760169347544,0.55371913,110760.0,110740.0,0.29167321]